fUSD/lending_fUSD_20240521
["ID","MTS","AMOUNT","RATE_DAILY","PERIOD"]
[327630439,1716259846259,-279.63555806,0.00025055,2]
[327630440,1716259846269,-1803.66,0.00025074,2]
[327630441,1716259846279,-155.54294866,0.00025129,2]
[327630442,1716259846289,-157.54126416,0.0002517,2]
[327630443,1716259846299,-168.84,0.00025195,2]
[327630444,1716259846308,-279.63555806,0.00025196,2]
[327630445,1716259846318,-182.00072046,0.00025217,2]
[327630446,1716259846328,-1000.0,0.00025418,2]
[327630447,1716259846338,-400.9,0.00025627,2]
[327630448,1716259846348,-182.00072046,0.00025644,2]
[327630449,1716259846358,-172.91,0.00025753,2]
[327630450,1716259846368,-166.66666668,0.00025822,2]
[327630451,1716259846378,-178.3,0.0002589,2]
[327630452,1716259846388,-182.00072046,0.00025908,2]
[327630453,1716259846398,-279.63555806,0.0002596,2]
[327630454,1716259846408,-988.0,0.00026027,2]
[327630455,1716259846418,-279.63555806,0.00026047,2]
[327630456,1716259846428,-157.6270965,0.00026253,2]
[327630457,1716259846438,-4503.35029701,0.00026264,2]
[327630458,1716259846447,-17666.69397128,0.00026439,2]
[327630459,1716259846457,-182.00072046,0.00026486,2]
[327630460,1716259846467,-1710.10313019,0.00026567,2]
[327630461,1716259846477,-279.63555806,0.00026589,2]
[327630462,1716259846486,-157.6270965,0.0002665,2]
[327630463,1716259846498,-2876.0,0.00026763,2]
[327630464,1716259846508,-182.00072046,0.00026786,2]
[327630465,1716259846518,-172.91,0.00026816,2]
[327630466,1716259846528,-182.00072046,0.00026829,2]
[327630469,1716259846537,-154.10242661,0.00026836,2]
[327630471,1716259846547,-2000.0,0.00026905,2]
[327630473,1716259846557,-200.0,0.00026905,2]
[327630474,1716259846567,-200.0,0.00026905,2]
[327630475,1716259846577,-155.54294866,0.00026921,2]
[327630476,1716259846587,-217.15,0.00026921,2]
[327630477,1716259846597,-1900.0,0.00027,2]
[327630478,1716259846607,-2000.0,0.00027,2]
[327630479,1716259846616,-2000.0,0.0002701,2]
[327630480,1716259846626,-2000.0,0.0002702,2]
[327630482,1716259846636,-2000.0,0.0002703,2]
[327630483,1716259846646,-2000.0,0.0002704,2]
[327630485,1716259846656,-1345.18750747,0.00027048,2]
[327630487,1716259846666,-3257.274172,0.0002705,2]
[327630488,1716259846675,-182.00072046,0.00027059,2]
[327630490,1716259846689,-2000.0,0.00027174,2]
[327630492,1716259846699,-200.0,0.00027174,2]
[327630493,1716259846709,-200.0,0.00027174,2]
[327630495,1716259846719,-155.89905455,0.00027178,2]
[327630496,1716259846730,-3000.0,0.0002725,2]
[327630497,1716259846741,-158.32013297,0.0002731,2]
[327630498,1716259846750,-155.11843489,0.00027324,2]
[327630499,1716259846830,-19028.02663422,0.0002733,2]
[327630500,1716259846840,-806.8374298,0.0002739,2]
[327630501,1716259846850,-988.0,0.00027397,4]
[327630502,1716259846864,-176.78548,0.00027397,7]
[327630503,1716259846883,-22686.94,0.00027397,2]
[327630504,1716259846894,-392.46,0.00027397,10]
[327630505,1716259846908,-1266.57,0.000274,2]
[327630506,1716259846923,-1266.57,0.000274,2]
[327630507,1716259846932,-1266.57,0.000274,2]
[327630508,1716259846943,-1266.57,0.000274,2]
[327630509,1716259846954,-1266.57,0.000274,2]
[327630510,1716259846964,-1266.57,0.000274,2]
[327630511,1716259846975,-1266.57,0.000274,2]
[327630512,1716259846985,-1266.57,0.000274,2]
[327630513,1716259846995,-1266.57,0.000274,2]
[327630514,1716259847005,-182.00072046,0.00027415,2]
[327630515,1716259847016,-2000.0,0.00027446,2]
[327630516,1716259847025,-200.0,0.00027446,2]
[327630517,1716259847035,-153.99884084,0.00027556,2]
[327630518,1716259847045,-203.0,0.000276,2]
[327630519,1716259847054,-200.0,0.000276,2]
[327630520,1716259847064,-2192.9678761,0.000276,2]
[327630521,1716259847074,-300.0,0.000276,2]
[327630522,1716259847084,-300.0,0.000276,2]
[327630523,1716259847093,-300.0,0.000276,2]
[327630524,1716259847103,-300.0,0.000276,2]
[327630525,1716259847114,-300.0,0.000276,2]
[327630526,1716259847124,-4503.35029701,0.00027627,2]
[327630527,1716259847133,-182.00072046,0.00027656,2]
[327630528,1716259847144,-2000.0,0.0002772,2]
[327630529,1716259847154,-200.0,0.0002772,2]
[327630530,1716259847165,-279.63555806,0.00027857,2]
[327630531,1716259847175,-172.91,0.00027878,2]
[327630532,1716259847185,-400.9,0.00027891,2]
[327630533,1716259847195,-159.08008484,0.00027951,2]
[327630534,1716259847204,-279.63555806,0.00027956,2]
[327630535,1716259847214,-1000.0,0.0002796,2]
[327630536,1716259847224,-168.84,0.00027994,2]
[327630537,1716259847234,-2000.0,0.00027997,2]
[327630538,1716259847245,-200.0,0.00027997,2]
[327630539,1716259847254,-154.10242661,0.00028037,2]
[327630540,1716259847263,-354.87655743,0.00028065,2]
[327630541,1716259847272,-182.00072046,0.00028182,2]
[327630542,1716259847282,-157.6270965,0.00028223,2]
[327630543,1716259847292,-161.0006692,0.00028293,2]
[327630544,1716259847301,-163.24962296,0.00028505,2]
[327630545,1716259847310,-155.5094026,0.00028642,2]
[327630546,1716259847319,-17666.69397128,0.00028683,2]
[327630547,1716259847328,-203.0,0.0002876,2]
[327630548,1716259847337,-267.48408784,0.00028767,6]
[327630549,1716259847347,-182.00072046,0.00028787,2]
[327630550,1716259847356,-1710.10313019,0.00028789,2]
[327630551,1716259847365,-154.10242661,0.00028841,2]
[327630552,1716259847376,-182.00072046,0.00028909,2]
[327630553,1716259847386,-172.91,0.00028941,2]
[327630554,1716259847396,-182.00072046,0.00028963,2]
[327630555,1716259847405,-4503.35029701,0.00028991,2]
[327630556,1716259847414,-1481.91583554,0.00029,2]
[327630557,1716259847423,-766.16817787,0.00029,2]
[327630558,1716259847434,-1950.0,0.00029,2]
[327630559,1716259847444,-155.5094026,0.00029143,2]
[327630560,1716259847453,-154.10242661,0.00029175,2]
[327630561,1716259847463,-184.97,0.00029227,120]
[327630562,1716259847473,-279.63555806,0.00029527,2]
[327630563,1716259847483,-182.00072046,0.0002957,2]
[327630564,1716259847494,-153.99884084,0.00029594,2]
[327630565,1716259847503,-3000.0,0.0002975,2]
[327630566,1716259847514,-279.63555806,0.00029788,2]
[327630567,1716259847523,-203.0,0.0002992,2]
[327630568,1716259847533,-155.5094026,0.00029931,2]
[327630569,1716259847543,-161.0006692,0.00029992,2]
[327630570,1716259847553,-161.0006692,0.00029999,2]
[327630571,1716259847563,-193.64,0.0003,2]
[327630572,1716259847573,-2342.47189271,0.0003,4]
[327630573,1716259847582,-18164.43912215,0.0003,3]
[327630574,1716259847592,-2181.15633448,0.0003,2]
[327630575,1716259847603,-348.26379281,0.0003,2]
[327630576,1716259847612,-1000.00193584,0.0003,2]
[327630577,1716259847622,-1707.3819053,0.0003,2]
[327630578,1716259847631,-2823.07554691,0.0003,2]
[327630579,1716259847642,-997.34,0.0003,2]
[327630580,1716259847651,-310.36,0.0003,2]
[327630581,1716259847660,-172.91,0.00030004,2]
[327630582,1716259847670,-200.62888217,0.00030137,30]
[327630583,1716259847679,-182.00072046,0.00030138,7]
[327630584,1716259847690,-400.9,0.00030155,2]
[327630585,1716259847700,-4503.35029701,0.00030355,2]
[327630586,1716259847709,-158.32013297,0.00030363,7]
[327630587,1716259847718,-155.54294866,0.00030382,7]
[327630588,1716259847729,-1000.0,0.00030502,2]
[327630589,1716259847740,-160.1344233,0.00030516,7]
[327630590,1716259847750,-1103.0,0.000306,4]
[327630591,1716259847759,-157.6270965,0.00030629,7]
[327630592,1716259847771,-152.89707066,0.00030695,7]
[327630593,1716259847782,-5413.0,0.000307,4]
[327630594,1716259847792,-168.84,0.00030794,2]
[327630595,1716259847801,-174.330289,0.00030832,2]
[327630596,1716259847810,-222.28598,0.00030832,2]
[327630597,1716259847819,-242.812499,0.00030832,2]
[327630598,1716259847828,-303.668444,0.00030832,2]
[327630599,1716259847837,-1542.729638,0.00030832,2]
[327630600,1716259847848,-159.86492,0.00030832,2]
[327630601,1716259847859,-201.568359,0.00030832,2]
[327630602,1716259847869,-199.239305,0.00030832,2]
[327630603,1716259847879,-1566.251753,0.00030832,2]
[327630604,1716259847888,-6289.460151,0.00030832,2]
[327630605,1716259847899,-679.628208,0.00030832,2]
[327630606,1716259847910,-1266.57,0.00030916,2]
[327630607,1716259847920,-151.0,0.00030926,7]
[327630608,1716259847931,-151.0,0.00030926,7]
[327630609,1716259847941,-151.0,0.00030926,7]
[327630610,1716259847950,-471.3546,0.00030926,7]
[327630611,1716259847959,-17666.69397128,0.00030926,2]
[327630612,1716259847968,-2000.0,0.00031,2]
[327630613,1716259847977,-1710.10313019,0.00031011,2]
[327630614,1716259847987,-150.5,0.0003105,15]
[327630615,1716259847997,-223.35,0.0003106,15]
[327630616,1716259848006,-150.5,0.0003106,15]
[327630617,1716259848014,-158.35,0.0003107,15]
[327630618,1716259848023,-150.5,0.0003107,15]
[327630619,1716259848033,-150.5,0.0003107,15]
[327630620,1716259848042,-203.0,0.0003108,2]
[327630621,1716259848051,-594.0,0.0003108,15]
[327630622,1716259848061,-151.11,0.0003108,15]
[327630623,1716259848070,-227.0,0.0003108,15]
[327630624,1716259848079,-715.0,0.0003108,15]
[327630625,1716259848088,-594.0,0.0003109,15]
[327630626,1716259848097,-150.5,0.0003109,15]
[327630627,1716259848106,-150.5,0.0003109,15]
[327630628,1716259848115,-715.0,0.0003109,15]
[327630629,1716259848125,-594.0,0.000311,15]
[327630630,1716259848135,-150.5,0.000311,15]
[327630631,1716259848144,-150.5,0.000311,15]
[327630632,1716259848153,-715.0,0.000311,15]
[327630633,1716259848162,-159.08008484,0.00031114,7]
[327630634,1716259848172,-159.57499239,0.00031153,7]
[327630635,1716259848184,-303.668444,0.00031218,2]
[327630636,1716259848193,-1542.729638,0.00031218,2]
[327630637,1716259848203,-159.86492,0.00031218,2]
[327630638,1716259848212,-1566.251753,0.00031218,2]
[327630639,1716259848221,-6289.460151,0.00031218,2]
[327630640,1716259848231,-679.628208,0.00031218,2]
[327630641,1716259848241,-157.6270965,0.00031295,7]
[327630642,1716259848250,-279.63555806,0.00031314,7]
[327630643,1716259848259,-1009.32,0.0003139,2]
[327630644,1716259848269,-226.64113316,0.00031414,7]
[327630645,1716259848278,-354.87655743,0.00031462,2]
[327630646,1716259848287,-152.89707066,0.00031492,7]
[327630647,1716259848297,-155.89905455,0.00031518,7]
[327630648,1716259848306,-303.668444,0.00031603,2]
[327630649,1716259848315,-1542.729638,0.00031603,2]
[327630650,1716259848325,-159.86492,0.00031603,2]
[327630651,1716259848334,-1566.251753,0.00031603,2]
[327630652,1716259848343,-6289.460151,0.00031603,2]
[327630653,1716259848352,-679.628208,0.00031603,2]
[327630654,1716259848363,-174.330289,0.00031603,2]
[327630655,1716259848372,-155.89905455,0.00031697,7]
[327630656,1716259848383,-166.66666667,0.00031697,7]
[327630657,1716259848395,-4503.35029701,0.00031718,3]
[327630658,1716259848404,-155.5094026,0.00031807,7]
[327630659,1716259848414,-159.57499239,0.00031925,7]
[327630660,1716259848423,-170.088169,0.00031988,7]
[327630661,1716259848432,-303.668444,0.00031988,2]
[327630662,1716259848442,-1542.729638,0.00031988,2]
[327630663,1716259848451,-159.86492,0.00031988,2]
[327630664,1716259848460,-1566.251753,0.00031988,2]
[327630665,1716259848469,-6289.460151,0.00031988,2]
[327630666,1716259848479,-679.628208,0.00031988,2]
[327630667,1716259848488,-7173.24059134,0.00032,2]
[327630668,1716259848497,-151.79535,0.00032,7]
[327630669,1716259848506,-182.00072046,0.00032079,7]
[327630670,1716259848514,-166.66666667,0.00032169,7]
[327630671,1716259848524,-163.24962296,0.00032212,4]
[327630672,1716259848532,-203.0,0.0003224,2]
[327630673,1716259848541,-159.57499239,0.00032247,7]
[327630674,1716259848550,-3000.0,0.0003225,2]
[327630675,1716259848559,-303.668444,0.00032374,2]
[327630676,1716259848569,-1542.729638,0.00032374,2]
[327630677,1716259848578,-159.86492,0.00032374,2]
[327630678,1716259848587,-1566.251753,0.00032374,2]
[327630679,1716259848596,-6289.460151,0.00032374,2]
[327630680,1716259848605,-679.628208,0.00032374,2]
[327630681,1716259848614,-174.330289,0.00032374,2]
[327630682,1716259848623,-156.832827,0.00032374,7]
[327630683,1716259848633,-400.9,0.00032418,2]
[327630684,1716259848642,-233.23668067,0.00032453,7]
[327630685,1716259848651,-182.00072046,0.00032511,7]
[327630686,1716259848660,-1776.95,0.00032877,2]
[327630687,1716259848669,-18838.18,0.00032877,2]
[327630688,1716259848678,-151.0,0.00032877,7]
[327630689,1716259848692,-151.0,0.00032877,7]
[327630690,1716259848702,-151.0,0.00032877,7]
[327630691,1716259848711,-153.304161,0.00032877,7]
[327630692,1716259848720,-151.0,0.00032877,7]
[327630693,1716259848730,-151.0,0.00032877,7]
[327630694,1716259848739,-151.0,0.00032877,7]
[327630695,1716259848749,-151.0,0.00032877,7]
[327630696,1716259848759,-270.961842,0.00032877,7]
[327630697,1716259848769,-7404.41,0.00033,12]
[327630698,1716259848778,-1504.8921841,0.00033,2]
[327630699,1716259848788,-2050.0,0.00033,2]
[327630700,1716259848797,-1657.159271,0.00033,2]
[327630701,1716259848807,-182.00072046,0.00033032,7]
[327630702,1716259848816,-4503.35029701,0.00033082,5]
[327630703,1716259848825,-279.63555806,0.00033091,7]
[327630704,1716259848834,-284.65,0.00033151,120]
[327630705,1716259848843,-17666.69397128,0.0003317,2]
[327630706,1716259848853,-182.00072046,0.00033174,7]
[327630707,1716259848862,-1710.10313019,0.00033233,2]
[327630708,1716259848871,-159.57499239,0.00033364,7]
[327630709,1716259848880,-217.15,0.00033396,2]
[327630710,1716259848889,-203.0,0.000334,2]
[327630711,1716259848899,-151.08337926,0.00033403,2]
[327630712,1716259848908,-182.00072046,0.00033418,7]
[327630713,1716259848917,-157.6270965,0.00033419,7]
[327630714,1716259848926,-279.63555806,0.00033436,7]
[327630715,1716259848935,-670.37,0.000335,2]
[327630716,1716259848945,-670.37,0.000335,2]
[327630717,1716259848954,-670.37,0.000335,2]
[327630718,1716259848963,-670.37,0.000335,2]
[327630719,1716259848973,-670.37,0.000335,2]
[327630720,1716259848984,-670.37,0.000335,2]
[327630721,1716259848993,-670.37,0.000335,2]
[327630722,1716259849003,-670.37,0.000335,2]
[327630723,1716259849013,-670.37,0.000335,2]
[327630724,1716259849024,-670.37,0.000335,2]
[327630725,1716259849033,-670.37,0.000335,2]
[327630726,1716259849042,-670.37,0.000335,2]
[327630727,1716259849051,-670.37,0.000335,2]
[327630728,1716259849060,-670.37,0.000335,2]
[327630729,1716259849070,-670.37,0.000335,2]
[327630730,1716259849079,-670.37,0.000335,2]
[327630731,1716259849090,-670.37,0.000335,2]
[327630732,1716259849100,-670.37,0.000335,2]
[327630733,1716259849111,-670.37,0.000335,2]
[327630734,1716259849120,-670.37,0.000335,2]
[327630735,1716259849130,-3290.0,0.00033507,4]
[327630736,1716259849142,-3206.0,0.00033507,4]
[327630737,1716259849152,-182.00072046,0.00033545,7]
[327630738,1716259849163,-168.84,0.00033593,2]
[327630739,1716259849172,-153.72660856,0.00033674,7]
[327630740,1716259849182,-159.57499239,0.00033686,7]
[327630741,1716259849191,-157.6270965,0.00033765,7]
[327630742,1716259849200,-159.74495075,0.00033786,7]
[327630743,1716259849209,-300.0,0.00033799,2]
[327630744,1716259849219,-7180.883914,0.000338,2]
[327630745,1716259849227,-1504.133178,0.000338,13]
[327630746,1716259849236,-407.012909,0.000338,2]
[327630747,1716259849246,-600.0,0.000338,120]
[327630748,1716259849256,-152.89707069,0.00033886,7]
[327630749,1716259849265,-300.0,0.00033936,2]
[327630750,1716259849275,-3886.0,0.00033983,120]
[327630751,1716259849284,-150.0,0.00033983,30]
[327630752,1716259849296,-151.03512361,0.00033983,7]
[327630753,1716259849307,-584.1443266,0.00033983,30]
[327630754,1716259849320,-1011.24864839,0.00034004,120]
[327630755,1716259849331,-302.37095578,0.00034073,2]
[327630756,1716259849340,-155.54294866,0.00034184,7]
[327630757,1716259849351,-154.10242661,0.00034189,7]
[327630758,1716259849363,-155.89905455,0.00034247,7]
[327630759,1716259849373,-154.51,0.00034329,2]
[327630760,1716259849383,-200.0,0.00034354,30]
[327630761,1716259849392,-4503.35029701,0.00034445,6]
[327630762,1716259849402,-830.75,0.00034466,2]
[327630763,1716259849411,-869.61,0.00034466,2]
[327630764,1716259849420,-869.61,0.00034466,2]
[327630765,1716259849431,-415.49,0.00034466,2]
[327630766,1716259849443,-869.61,0.00034466,2]
[327630767,1716259849452,-869.61,0.00034466,2]
[327630768,1716259849462,-157.6270965,0.0003451,7]
[327630769,1716259849472,-234.93251972,0.00034547,3]
[327630770,1716259849482,-150.0,0.00034548,10]
[327630771,1716259849491,-203.0,0.0003456,2]
[327630772,1716259849501,-200.0,0.00034617,20]
[327630773,1716259849511,-1000.0,0.00034617,30]
[327630774,1716259849521,-500.0,0.00034617,10]
[327630775,1716259849531,-200.0,0.00034617,10]
[327630776,1716259849540,-208.0,0.0003462,2]
[327630777,1716259849550,-150.0,0.00034632,2]
[327630778,1716259849560,-400.9,0.00034682,2]
[327630779,1716259849569,-1154.14509869,0.00034747,2]
[327630780,1716259849579,-153.99884085,0.00034749,7]
[327630781,1716259849589,-3000.0,0.0003475,2]
[327630782,1716259849599,-279.63555806,0.00034778,7]
[327630783,1716259849608,-180.0148257,0.00034844,7]
[327630784,1716259849617,-354.87655743,0.00034859,2]
[327630785,1716259849627,-208.1190654,0.00034895,2]
[327630786,1716259849638,-5871.71100266,0.00034895,2]
[327630787,1716259849647,-5693.91237129,0.00034904,2]
[327630788,1716259849658,-155.54702815,0.00034904,4]
[327630789,1716259849668,-2227.77031188,0.00034904,14]
[327630790,1716259849678,-645.66284216,0.00034904,4]
[327630791,1716259849689,-218.42607475,0.00034904,4]
[327630792,1716259849699,-298.89054864,0.00034904,4]
[327630793,1716259849708,-805.07870858,0.00034904,4]
[327630794,1716259849717,-368.61497662,0.00034904,4]
[327630795,1716259849727,-472.97026074,0.00034904,4]
[327630796,1716259849736,-4294.64652253,0.00034904,4]
[327630797,1716259849745,-390.07195897,0.00034905,4]
[327630798,1716259849754,-152.20246739,0.00034933,7]
[327630799,1716259849767,-157.6270965,0.0003495,7]
[327630800,1716259849776,-1693.8972458,0.00034976,2]
[327630801,1716259849785,-1000.0,0.00035,20]
[327630802,1716259849794,-1000.0,0.00035,20]
[327630803,1716259849803,-1000.0,0.00035,20]
[327630804,1716259849812,-1000.0,0.00035,20]
[327630805,1716259849822,-1000.0,0.00035,20]
[327630806,1716259849831,-1000.0,0.00035,20]
[327630807,1716259849840,-1000.0,0.00035,20]
[327630808,1716259849849,-1000.0,0.00035,20]
[327630809,1716259849860,-1000.0,0.00035,20]
[327630810,1716259849871,-1000.0,0.00035,20]
[327630811,1716259849880,-1000.0,0.00035,20]
[327630812,1716259849889,-1000.0,0.00035,20]
[327630813,1716259849899,-1000.0,0.00035,20]
[327630814,1716259849908,-1000.0,0.00035,20]
[327630815,1716259849917,-1000.0,0.00035,20]
[327630816,1716259849926,-1000.0,0.00035,20]
[327630817,1716259849937,-1000.0,0.00035,20]
[327630818,1716259849947,-1000.0,0.00035,20]
[327630819,1716259849958,-1000.0,0.00035,20]
[327630820,1716259849969,-1000.0,0.00035,20]
[327630821,1716259849980,-1000.0,0.00035,20]
[327630822,1716259849989,-1000.0,0.00035,20]
[327630823,1716259850000,-1000.0,0.00035,20]
[327630824,1716259850009,-1000.0,0.00035,20]
[327630825,1716259850020,-1000.0,0.00035,20]
[327630826,1716259850030,-1000.0,0.00035,20]
[327630827,1716259850040,-1000.0,0.00035,20]
[327630828,1716259850050,-1000.0,0.00035,20]
[327630829,1716259850060,-1000.0,0.00035,20]
[327630830,1716259850068,-1000.0,0.00035,20]
[327630831,1716259850078,-771.64287075,0.00035,20]
[327630832,1716259850087,-2100.0,0.00035,2]
[327630833,1716259850096,-159.57499239,0.00035055,7]
[327630834,1716259850106,-151.15,0.00035068,2]
[327630835,1716259850116,-150.0,0.00035151,2]
[327630836,1716259850126,-159.57499239,0.00035166,7]
[327630837,1716259850136,-160.56921427,0.00035244,7]
[327630838,1716259850146,-151.0,0.00035413,7]
[327630839,1716259850157,-151.0,0.00035413,7]
[327630840,1716259850169,-151.0,0.00035413,7]
[327630841,1716259850179,-471.3546,0.00035413,7]
[327630842,1716259850189,-17666.69397128,0.00035413,2]
[327630843,1716259850199,-1710.10313019,0.00035456,2]
[327630844,1716259850209,-157.6270965,0.00035481,7]
[327630845,1716259850220,-279.63555806,0.00035485,7]
[327630846,1716259850229,-182.00072046,0.00035486,7]
[327630847,1716259850238,-182.00072046,0.00035493,7]
[327630848,1716259850248,-155.89905455,0.00035498,7]
[327630849,1716259850258,-40213.2246265,0.00035616,7]
[327630850,1716259850267,-150.0,0.00035616,2]
[327630851,1716259850277,-203.0,0.0003572,2]
[327630852,1716259850286,-208.0,0.0003577,2]
[327630853,1716259850295,-4503.35029701,0.00035809,8]
[327630854,1716259850306,-279.63555806,0.00035908,7]
[327630855,1716259850317,-163.24962296,0.00035919,8]
[327630856,1716259850326,-155.5094026,0.00035964,7]
[327630857,1716259850336,-150.0,0.00035965,2]
[327630858,1716259850345,-155.263172,0.00036,8]
[327630859,1716259850354,-773.09814205,0.00036047,5]
[327630860,1716259850363,-670.37,0.000363,3]
[327630861,1716259850372,-670.37,0.000363,3]
[327630862,1716259850381,-670.37,0.000363,3]
[327630863,1716259850391,-670.37,0.000363,3]
[327630864,1716259850400,-670.37,0.000363,3]
[327630865,1716259850409,-670.37,0.000363,3]
[327630866,1716259850420,-670.37,0.000363,3]
[327630867,1716259850429,-670.37,0.000363,3]
[327630868,1716259850438,-670.37,0.000363,3]
[327630869,1716259850447,-670.37,0.000363,3]
[327630870,1716259850457,-670.37,0.000363,3]
[327630871,1716259850466,-670.37,0.000363,3]
[327630872,1716259850475,-670.37,0.000363,3]
[327630873,1716259850486,-670.37,0.000363,3]
[327630874,1716259850497,-670.37,0.000363,3]
[327630875,1716259850507,-670.37,0.000363,3]
[327630876,1716259850516,-670.37,0.000363,3]
[327630877,1716259850526,-670.37,0.000363,3]
[327630878,1716259850535,-670.37,0.000363,3]
[327630879,1716259850545,-670.37,0.000363,3]
[327630880,1716259850555,-279.63555806,0.00036375,7]
[327630881,1716259850564,-1020.41,0.00036384,2]
[327630882,1716259850573,-424.49,0.00036384,2]
[327630883,1716259850582,-500.0,0.00036437,10]
[327630884,1716259850591,-492.21984145,0.00036437,10]
[327630885,1716259850600,-500.0,0.00036437,10]
[327630886,1716259850610,-506.69587451,0.00036437,10]
[327630887,1716259850619,-150.0,0.000365,9]
[327630888,1716259850628,-2171.796,0.0003651,2]
[327630889,1716259850638,-1402.916,0.0003651,2]
[327630890,1716259850648,-974.092,0.0003651,2]
[327630891,1716259850658,-677.043,0.0003651,2]
[327630892,1716259850667,-1225.0,0.0003651,2]
[327630893,1716259850676,-1674.963,0.0003651,2]
[327630894,1716259850690,-1263.0,0.0003651,2]
[327630895,1716259850699,-242.335,0.0003651,2]
[327630896,1716259850708,-442.666,0.0003651,2]
[327630897,1716259850717,-474.6,0.0003651,2]
[327630898,1716259850728,-809.0,0.0003651,2]
[327630899,1716259850737,-726.86,0.0003651,2]
[327630900,1716259850747,-204.838,0.0003651,2]
[327630901,1716259850757,-1648.0,0.0003651,2]
[327630902,1716259850766,-247.953,0.0003651,2]
[327630903,1716259850778,-150.385,0.0003651,2]
[327630904,1716259850787,-2395.0,0.0003651,2]
[327630905,1716259850796,-1149.641,0.0003651,2]
[327630906,1716259850805,-224.0,0.0003651,2]
[327630907,1716259850815,-3161.0,0.0003651,2]
[327630908,1716259850824,-254.175,0.0003651,2]
[327630909,1716259850833,-285.153,0.0003651,2]
[327630910,1716259850842,-212.0,0.0003651,2]
[327630911,1716259850851,-161.0,0.0003651,2]
[327630912,1716259850860,-161.0,0.0003651,2]
[327630913,1716259850870,-5132.0,0.0003651,2]
[327630914,1716259850879,-258.468,0.0003651,2]
[327630915,1716259850995,-263.0,0.0003651,2]
[327630916,1716259851016,-222.15,0.0003651,2]
[327630917,1716259851026,-194.557,0.0003651,2]
[327630918,1716259851035,-223.528,0.0003651,2]
[327630919,1716259851045,-5757.0,0.0003651,2]
[327630920,1716259851055,-1465.0,0.0003651,2]
[327630921,1716259851064,-273.551,0.0003651,2]
[327630922,1716259851073,-289.0,0.0003651,2]
[327630923,1716259851083,-152.0,0.0003651,2]
[327630924,1716259851094,-152.696,0.0003651,2]
[327630925,1716259851104,-235.498,0.0003651,2]
[327630926,1716259851115,-37885.0,0.0003651,2]
[327630927,1716259851125,-1061.0,0.0003651,2]
[327630928,1716259851135,-150.109,0.0003651,2]
[327630929,1716259851144,-150.0,0.00036554,2]
[327630930,1716259851155,-182.00072046,0.00036565,7]
[327630931,1716259851166,-166.29644051,0.00036572,7]
[327630932,1716259851176,-159.57499245,0.00036624,7]
[327630933,1716259851185,-182.00072046,0.00036677,7]
[327630934,1716259851195,-157.6270965,0.00036752,7]
[327630935,1716259851204,-279.63555806,0.00036793,7]
[327630936,1716259851213,-150.0,0.00036876,2]
[327630937,1716259851222,-203.0,0.0003688,2]
[327630938,1716259851231,-208.0,0.0003692,2]
[327630939,1716259851241,-400.9,0.00036946,2]
[327630940,1716259851251,-182.00072046,0.00036951,7]
[327630941,1716259851261,-178.3,0.00036986,2]
[327630942,1716259851270,-793.0,0.00036994,14]
[327630943,1716259851280,-50000.0,0.00037,5]
[327630944,1716259851289,-6194.94,0.00037,6]
[327630945,1716259851298,-189.273161,0.00037,7]
[327630946,1716259851307,-205.512768,0.00037,7]
[327630947,1716259851317,-172.494555,0.00037,7]
[327630948,1716259851326,-193.533372,0.00037,7]